bitfinex/quotes_BTCUSD_20220105
["timestamp","ask_amount","ask_price","bid_price","bid_amount"]
[1641418843228,0.80774179,43741.0,43728.0,0.10120891]
[1641418843229,0.80786619,43741.0,43728.0,0.10120891]
[1641418843426,0.1400966,43741.0,43735.0,0.00121615]
[1641418843627,0.1400966,43741.0,43725.0,0.29414008]
[1641418843628,0.1400966,43741.0,43725.0,0.00127278]
[1641418843827,0.1400966,43741.0,43724.0,0.06541]
[1641418843828,0.21463449,43740.0,43724.0,0.06541]
[1641418844027,0.1400966,43741.0,43733.0,0.32715784]
[1641418844227,0.1400966,43741.0,43727.0,0.00249689]
[1641418844485,0.1400966,43741.0,43737.0,0.57201577]
[1641418844679,0.1400966,43741.0,43740.0,0.899642]
[1641418845081,0.07009,43746.0,43741.0,2.319217]
[1641418845280,0.07009,43746.0,43745.0,2.319205]
[1641418845479,0.53930125,43755.0,43745.0,3.19689387]
[1641418845779,0.0108884,43764.0,43746.0,0.369589]
[1641418846378,0.0108884,43764.0,43746.0,2.469589]
[1641418846578,0.0134842,43754.0,43746.0,2.469589]
[1641418846778,0.0134842,43754.0,43746.0,2.319589]
[1641418846977,0.00124206,43753.0,43746.0,0.519589]
[1641418847178,0.00124206,43753.0,43746.0,0.374589]
[1641418847381,0.00124206,43753.0,43747.0,1.56]
[1641418847582,0.00124206,43753.0,43746.0,0.3758625]
[1641418847583,0.00124206,43753.0,43749.0,0.37083275]
[1641418848425,0.00124206,43753.0,43749.0,2.20693885]
[1641418848625,0.22366066,43763.0,43754.0,0.39067391]
[1641418848925,0.238107,43764.0,43754.0,0.39067391]
[1641418849126,0.0108884,43764.0,43754.0,0.46962391]
[1641418849326,0.0108884,43764.0,43754.0,0.52082677]
[1641418849528,0.0108884,43764.0,43761.0,0.00129624]
[1641418849726,0.0108884,43764.0,43762.0,1.20263415]
[1641418849927,0.0108884,43764.0,43763.0,0.369642]
[1641418849928,8.84e-05,43764.0,43763.0,0.369642]
[1641418850136,8.84e-05,43764.0,43763.0,0.530312]
[1641418850327,0.00397828,43770.0,43763.0,0.530312]
[1641418850527,0.00397828,43770.0,43768.0,0.00129817]
[1641418850728,0.00397828,43770.0,43769.0,2.609586]
[1641418851327,1.436e-05,43771.0,43770.0,2.31893]
[1641418851526,1.436e-05,43771.0,43770.0,2.80997463]
[1641418851727,9.22e-06,43773.0,43772.0,0.36956]
[1641418851997,5.39418378,43810.0,43776.0,0.37080791]
[1641418851998,0.02119,43799.0,43776.0,0.37080791]
[1641418852182,0.02119,43799.0,43779.0,2.32014152]
[1641418852183,0.42364205,43796.0,43779.0,2.32014152]
[1641418852584,0.42364205,43796.0,43779.0,0.08014152]
[1641418852585,0.52364205,43796.0,43779.0,0.08014152]
[1641418852790,0.33899455,43785.0,43779.0,0.08014152]
[1641418852985,0.33899455,43785.0,43765.0,0.3]
[1641418852986,0.25591243,43782.0,43765.0,0.1]
[1641418853187,0.2272186,43781.0,43779.0,0.006]
[1641418853383,0.369742,43780.0,43773.0,0.01348314]
[1641418853587,0.369742,43780.0,43779.0,0.00250517]
[1641418853588,0.0001,43780.0,43779.0,0.00250517]
[1641418854182,0.4151,43781.0,43779.0,0.00121658]
[1641418854587,0.76336166,43781.0,43779.0,0.00121658]
[1641418854886,1.0058355,43780.0,43774.0,1.593e-05]
[1641418855088,1.0058355,43780.0,43759.0,0.114242]
[1641418855089,1.93,43773.0,43759.0,0.00121131]
[1641418855290,0.00128422,43771.0,43749.0,0.1]
[1641418855736,0.44140138,43753.0,43749.0,0.1]
[1641418855935,0.44140138,43753.0,43751.0,0.65259573]
[1641418856140,0.00128492,43760.0,43752.0,0.2]
[1641418856336,0.00125576,43770.0,43753.0,0.369642]
[1641418856539,0.7339,43779.0,43754.0,0.2]
[1641418856843,5.68007806,43785.0,43768.0,0.00128732]
[1641418857036,5.68007806,43785.0,43771.0,1.20651016]
[1641418857037,0.44107076,43777.0,43771.0,1.20651016]
[1641418857237,0.44107076,43777.0,43759.0,0.2297127]
[1641418857435,0.44107076,43777.0,43763.0,0.057124]
[1641418857636,0.44107076,43777.0,43759.0,0.2868377]
[1641418857637,0.44107076,43777.0,43759.0,0.3297127]
[1641418857836,0.44107076,43777.0,43762.0,0.057124]
[1641418858039,0.44107076,43777.0,43759.0,0.2297127]
[1641418858040,0.44107076,43777.0,43759.0,0.32348975]
[1641418858238,0.44348509,43770.0,43767.0,0.2]
[1641418858435,0.44348509,43770.0,43762.0,0.58099562]
[1641418858638,0.44348509,43770.0,43762.0,0.73220434]
[1641418858838,0.44348509,43770.0,43763.0,1.66225723]
[1641418859236,0.44348509,43770.0,43763.0,1.89776977]
[1641418859481,0.00122418,43775.0,43770.0,0.28772377]
[1641418859677,0.41134682,43781.0,43768.0,0.2]
[1641418860074,0.41134682,43781.0,43774.0,0.6373661]
[1641418860278,0.4101,43781.0,43775.0,0.2]
[1641418860476,0.42,43787.0,43778.0,0.51647243]
[1641418860477,0.77566363,43787.0,43778.0,0.51647243]
[1641418860874,0.77566363,43787.0,43778.0,0.61647243]
[1641418861077,0.77566363,43787.0,43784.0,0.2]
[1641418861278,0.4065354,43787.0,43784.0,0.0829]
[1641418861481,0.0001,43790.0,43787.0,0.2]
[1641418861679,0.0001,43790.0,43789.0,2.51993037]
[1641418861877,0.0001,43790.0,43789.0,0.29219037]
[1641418862080,0.0001,43790.0,43778.0,0.008]
[1641418862278,0.0001,43790.0,43778.0,0.003]
[1641418862477,0.28232539,43789.0,43777.0,0.028]
[1641418862781,0.0012971,43782.0,43777.0,0.028]
[1641418862977,0.66894446,43778.0,43777.0,0.028]
[1641418863235,0.66894446,43778.0,43777.0,0.038]
[1641418863236,1.03858646,43778.0,43777.0,0.038]
[1641418863433,0.66894446,43778.0,43777.0,0.038]
[1641418864636,1.08858646,43778.0,43776.0,0.0012578]
[1641418864838,1.08858646,43778.0,43754.0,0.26636344]
[1641418864839,0.00125271,43773.0,43754.0,0.26636344]
[1641418865038,0.00125271,43773.0,43752.0,0.01908]
[1641418865039,0.00128469,43765.0,43752.0,0.01908]
[1641418865237,0.00129865,43760.0,43752.0,0.01908]
[1641418865435,0.00129865,43760.0,43756.0,0.65430964]
[1641418865635,0.00129865,43760.0,43757.0,0.369642]
[1641418865844,0.32443648,43758.0,43757.0,0.369642]
[1641418866036,0.00129865,43760.0,43757.0,0.369642]
[1641418866336,0.01348472,43765.0,43758.0,0.36590736]
[1641418866535,0.01475092,43765.0,43758.0,0.36590736]
[1641418866837,0.01475092,43765.0,43758.0,0.00125836]
[1641418867273,0.38277326,43764.0,43758.0,0.01425836]
[1641418867474,0.47588412,43762.0,43758.0,0.01425836]
[1641418868073,0.52588412,43762.0,43758.0,0.01425836]
[1641418868273,0.00123354,43759.0,43758.0,0.013]
[1641418868582,0.21206655,43765.0,43752.0,0.01908]
[1641418868583,0.293,43769.0,43752.0,0.21908]
[1641418868777,0.293,43769.0,43753.0,0.2]
[1641418868975,0.22218878,43768.0,43753.0,0.2]
[1641418869176,0.22218878,43768.0,43764.0,0.29131317]
[1641418869374,0.33321269,43764.0,43758.0,0.2]
[1641418869573,0.33321269,43764.0,43758.0,0.194]
[1641418870377,0.33321269,43764.0,43758.0,0.134]
[1641418870575,0.33321269,43764.0,43757.0,0.74689729]
[1641418871021,0.293,43769.0,43759.0,0.2]
[1641418871228,0.293,43769.0,43760.0,0.274118]
[1641418871521,0.293,43769.0,43764.0,0.369483]
[1641418871725,0.293,43769.0,43765.0,0.52557532]
[1641418871919,0.293,43769.0,43767.0,0.75186201]
[1641418872121,0.293,43769.0,43767.0,0.85186201]
[1641418872320,0.293,43769.0,43768.0,0.369539]
[1641418872721,0.293,43769.0,43767.0,0.60898148]
[1641418872921,0.293,43769.0,43767.0,0.70398148]
[1641418873122,0.293,43769.0,43768.0,0.369539]
[1641418873729,0.293,43769.0,43767.0,0.126]
[1641418873924,0.68636344,43769.0,43767.0,0.026]
[1641418874567,0.68636344,43769.0,43765.0,0.76635973]
[1641418874767,0.68559162,43769.0,43765.0,0.76635973]
[1641418874969,0.27674494,43769.0,43765.0,0.47557532]
[1641418875167,0.27674494,43769.0,43766.0,0.369539]
[1641418875568,0.27596983,43769.0,43766.0,0.469539]
[1641418875968,0.27596983,43769.0,43768.0,0.2]
[1641418876169,0.27603811,43769.0,43768.0,0.274026]
[1641418876668,0.27603811,43769.0,43768.0,0.074026]
[1641418876870,0.27603811,43769.0,43767.0,0.02111]
[1641418877070,6.694e-05,43770.0,43767.0,0.02111]
[1641418877071,0.0855578,43774.0,43767.0,0.02111]
[1641418877270,0.0855578,43774.0,43772.0,0.0012142]
[1641418877470,0.00901431,43777.0,43774.0,1.9]
[1641418877670,6.30274661,43793.0,43778.0,0.273958]
[1641418877871,0.64513272,43781.0,43778.0,0.0683]
[1641418879025,0.64513272,43781.0,43775.0,0.057112]
[1641418879223,0.64513272,43781.0,43778.0,0.0262166]
[1641418879629,0.18342237,43771.0,43767.0,0.12111]
[1641418879825,0.18342237,43771.0,43760.0,0.01348402]
[1641418879826,0.77272045,43771.0,43760.0,0.01348402]
[1641418880023,0.31105665,43767.0,43760.0,0.01348402]
[1641418880223,0.00129691,43761.0,43747.0,0.057149]
[1641418880426,0.3697547,43754.0,43746.0,0.63227128]
[1641418880626,0.3697547,43754.0,43746.0,0.83227128]
[1641418880827,0.64651044,43758.0,43748.0,0.05714599]
[1641418881025,0.00129691,43761.0,43748.0,0.05714599]
[1641418881225,0.00129691,43761.0,43754.0,0.32905223]
[1641418882073,0.00129691,43761.0,43755.0,0.369539]
[1641418882576,0.00129691,43761.0,43749.0,0.272]
[1641418882577,0.00129691,43761.0,43749.0,0.22]
[1641418883274,0.34261724,43755.0,43754.0,0.25074019]
[1641418883675,0.00129691,43761.0,43754.0,0.369539]
[1641418883877,0.2422225,43769.0,43755.0,0.074169]
[1641418884073,0.2422225,43769.0,43750.0,1.65658128]
[1641418884074,0.00128777,43763.0,43750.0,1.65658128]
[1641418884279,0.00128777,43763.0,43752.0,0.057142]
[1641418884473,0.00128777,43763.0,43753.0,0.074196]
[1641418884675,0.00128777,43763.0,43750.0,0.41386588]
[1641418884676,0.31607086,43755.0,43750.0,0.26386588]
[1641418884878,0.31607086,43755.0,43749.0,0.22]
[1641418885073,0.00124791,43756.0,43749.0,0.22]
[1641418885277,0.00124791,43756.0,43750.0,0.043]
[1641418885720,0.60702321,43752.0,43750.0,0.043]
[1641418885922,0.35611588,43751.0,43750.0,0.043]
[1641418886323,0.72565488,43751.0,43750.0,0.043]
[1641418886522,3.27752104,43751.0,43749.0,0.22]
[1641418886725,1.95,43749.0,43733.0,0.00011]
[1641418887026,0.0012216,43743.0,43733.0,0.00011]
[1641418887224,0.0012992,43736.0,43733.0,0.00011]
[1641418887421,1.37722491,43735.0,43733.0,0.00011]
[1641418887625,0.21249482,43734.0,43732.0,0.00011]
[1641418887824,0.21249482,43734.0,43727.0,0.00011]
[1641418887825,0.057192,43731.0,43727.0,0.00011]
[1641418888033,0.62783325,43730.0,43727.0,0.00011]
[1641418888425,0.67783325,43730.0,43727.0,0.00011]
[1641418889024,0.73503325,43730.0,43727.0,0.00011]
[1641418889225,0.427539,43730.0,43727.0,0.00011]
[1641418889482,0.377539,43730.0,43727.0,0.00011]
[1641418889679,0.008,43730.0,43727.0,0.00011]
[1641418890269,0.008,43730.0,43729.0,0.369209]
[1641418890475,0.008,43730.0,43729.0,1.41765829]
[1641418890775,0.60322926,43747.0,43729.0,2.16251812]
[1641418890776,0.00128411,43746.0,43729.0,2.16251812]
[1641418890970,0.00128411,43746.0,43739.0,0.45093597]
[1641418891370,0.00123376,43739.0,43728.0,0.01958]
[1641418892070,0.53851885,43737.0,43728.0,0.01958]
[1641418892273,0.9177584,43737.0,43729.0,0.30128103]
[1641418892473,0.00123376,43739.0,43729.0,0.30128103]
[1641418892675,0.0001,43740.0,43731.0,0.05716926]
[1641418892874,0.0001,43740.0,43732.0,0.07407]
[1641418893325,0.56115523,43734.0,43732.0,0.07407]
[1641418893525,0.3856119,43740.0,43732.0,0.07407]
[1641418893725,0.3856119,43740.0,43728.0,0.01958]
[1641418893726,0.057183,43739.0,43728.0,0.01958]
[1641418893923,0.20302825,43738.0,43728.0,0.01958]
[1641418894326,0.20302825,43738.0,43730.0,0.3046043]
[1641418894527,0.26320367,43739.0,43730.0,0.3046043]
[1641418894725,0.25820367,43739.0,43728.0,0.01958]
[1641418894930,0.59179285,43733.0,43728.0,0.01958]
[1641418895127,0.00126825,43735.0,43728.0,0.01958]
[1641418895328,0.00126825,43735.0,43729.0,0.369576]
[1641418895529,0.0001,43740.0,43730.0,0.2]
[1641418895832,0.0001,43740.0,43734.0,0.331239]
[1641418896030,0.0001,43740.0,43738.0,0.369499]
[1641418896227,0.0001,43740.0,43739.0,2.6134793]
[1641418896529,0.7977,43758.0,43740.0,0.2]
[1641418896829,0.01821,43762.0,43749.0,0.00121602]
[1641418897079,0.01821,43762.0,43758.0,0.24850109]
[1641418897276,0.01821,43762.0,43759.0,3.08664124]
[1641418897582,0.01821,43762.0,43759.0,3.18664124]
[1641418897777,0.01821,43762.0,43759.0,3.85182668]
[1641418897975,0.01821,43762.0,43759.0,3.85052878]
[1641418898176,0.01821,43762.0,43759.0,2.651305]
[1641418898377,0.01821,43762.0,43759.0,0.411305]
[1641418898976,0.05839311,43772.0,43759.0,0.411305]
[1641418899177,0.62441646,43763.0,43759.0,0.411305]
[1641418899375,0.37035193,43767.0,43759.0,0.76565379]
[1641418899576,0.38383659,43767.0,43759.0,0.76565379]
[1641418899777,0.01348466,43767.0,43759.0,3.20565379]
[1641418899977,0.01348466,43767.0,43759.0,3.35565379]
[1641418900191,0.0307976,43773.0,43764.0,0.2]
[1641418900192,7.03e-06,43771.0,43764.0,0.2]
[1641418900383,0.0001,43780.0,43764.0,0.2]
[1641418900384,0.0001,43780.0,43770.0,0.00126249]
[1641418900593,0.0001,43780.0,43779.0,0.0012648]
[1641418900837,0.0001,43780.0,43779.0,2.86059258]
[1641418901038,0.0001,43780.0,43779.0,3.38016858]
[1641418901438,0.0001,43780.0,43779.0,3.86710407]
[1641418902241,0.0001,43780.0,43779.0,0.6629608]
[1641418902445,0.0001,43780.0,43779.0,0.421576]
[1641418902748,0.0001,43780.0,43779.0,0.411576]
[1641418902941,0.0001,43780.0,43779.0,0.369576]
[1641418903140,0.0001,43780.0,43774.0,0.5436795]
[1641418903343,0.0001,43780.0,43779.0,1.01]
[1641418903540,0.0001,43780.0,43779.0,1.379576]
[1641418904039,0.0001,43780.0,43779.0,0.429576]
[1641418904667,0.0001,43780.0,43779.0,1.089576]
[1641418904868,0.0001,43780.0,43779.0,0.72896412]
[1641418905069,0.0001,43780.0,43779.0,0.71896412]
[1641418905274,0.0001,43780.0,43779.0,0.88296412]
[1641418905571,0.0001,43780.0,43779.0,1.16468567]
[1641418905768,0.0001,43780.0,43779.0,3.40468567]
[1641418906169,0.0001,43780.0,43779.0,0.81344412]
[1641418906369,0.52847381,43788.0,43780.0,2.233505]
[1641418906570,0.52847381,43788.0,43783.0,0.057104]
[1641418906769,0.01358397,43790.0,43781.0,0.48680824]
[1641418906969,0.01358397,43790.0,43782.0,0.369576]
[1641418907169,0.01358397,43790.0,43782.0,0.698394]
[1641418907469,0.01358397,43790.0,43786.0,0.26087955]
[1641418907768,0.01358397,43790.0,43787.0,0.073459]
[1641418907973,0.01358397,43790.0,43782.0,0.1]
[1641418908222,0.0001,43790.0,43781.0,0.55691424]
[1641418908422,0.0001,43790.0,43781.0,0.60691424]
[1641418908625,0.0001,43790.0,43782.0,0.369576]
[1641418908824,0.0001,43790.0,43782.0,0.476681]
[1641418909022,0.0001,43790.0,43782.0,0.419576]
[1641418909323,0.0001,43790.0,43782.0,0.437576]
[1641418909524,0.0001,43790.0,43782.0,0.068]
[1641418909525,0.00124064,43789.0,43782.0,0.068]
[1641418909728,0.00125556,43784.0,43782.0,0.068]
[1641418909924,2.7049554,43783.0,43782.0,0.068]
[1641418910425,0.369576,43783.0,43782.0,0.068]
[1641418910640,0.0001,43790.0,43774.0,0.32085489]
[1641418910825,0.0001,43790.0,43775.0,0.369576]
[1641418911224,0.0001,43790.0,43776.0,0.2]
[1641418911425,0.0001,43790.0,43785.0,0.33920134]
[1641418911824,0.0001,43790.0,43778.0,0.171319]
[1641418912079,0.0001,43790.0,43775.0,0.013]
[1641418912080,0.05833805,43787.0,43775.0,0.013]
[1641418912479,0.00121605,43787.0,43775.0,0.013]
[1641418912681,0.0012009,43781.0,43769.0,0.114235]
[1641418912878,0.0012009,43781.0,43773.0,0.31979223]
[1641418912879,0.38043366,43780.0,43773.0,0.31979223]
[1641418913283,0.38043366,43780.0,43774.0,0.369576]
[1641418913678,0.0012009,43781.0,43774.0,0.369576]
[1641418913881,0.00123621,43787.0,43774.0,0.369576]
[1641418914082,0.00123621,43787.0,43778.0,0.57205707]
[1641418914280,0.00123621,43787.0,43784.0,0.33236243]
[1641418914481,0.00123621,43787.0,43778.0,0.57205707]
[1641418914683,0.00123621,43787.0,43781.0,0.28708322]
[1641418914881,0.00123621,43787.0,43782.0,0.073497]
[1641418915081,0.00123621,43787.0,43781.0,0.28708322]
[1641418915580,0.00123621,43787.0,43781.0,0.29608322]
[1641418915829,0.48569029,43785.0,43781.0,0.009]
[1641418916026,1.03367131,43784.0,43781.0,0.009]
[1641418916422,1.01403006,43784.0,43781.0,0.009]
[1641418916623,0.00126099,43781.0,43776.0,0.32364809]
[1641418916823,0.00126099,43781.0,43770.0,0.11424037]
[1641418916824,0.00126099,43781.0,43772.0,0.31835774]
[1641418917023,0.34864518,43777.0,43769.0,0.05]
[1641418917422,0.34864518,43777.0,43772.0,0.011]
[1641418917623,0.00126099,43781.0,43772.0,0.011]
[1641418917828,0.00126099,43781.0,43774.0,0.26765549]
[1641418918225,0.00126099,43781.0,43775.0,0.369576]
[1641418918627,0.00126099,43781.0,43777.0,0.60414979]
[1641418918827,0.00126099,43781.0,43778.0,0.073545]
[1641418919027,0.00126099,43781.0,43764.0,0.114246]
[1641418919028,0.369576,43780.0,43764.0,0.114246]
[1641418919231,0.369576,43780.0,43759.0,0.05713468]
[1641418919232,0.00126869,43775.0,43759.0,0.05713468]
[1641418919490,0.00126869,43775.0,43754.0,0.114268]
[1641418919491,0.2707096,43775.0,43754.0,0.114268]
[1641418919687,0.2707096,43775.0,43750.0,0.00121966]
[1641418919688,0.00126869,43775.0,43750.0,0.00121966]
[1641418919881,0.00126869,43775.0,43764.0,0.90415803]
[1641418920184,0.00126869,43775.0,43765.0,0.057127]
[1641418920382,0.00126869,43775.0,43768.0,0.05712448]
[1641418920581,0.00126869,43775.0,43769.0,0.073648]
[1641418920986,0.63488754,43775.0,43769.0,0.073648]
[1641418921182,0.83503379,43775.0,43759.0,0.11426]
[1641418921383,0.94603379,43775.0,43759.0,0.11426]
[1641418921582,0.94723399,43775.0,43759.0,0.11426]
[1641418921780,0.95128798,43775.0,43759.0,0.11426]
[1641418921980,0.20093184,43774.0,43759.0,0.11426]
[1641418922182,0.64708774,43775.0,43765.0,0.35911913]
[1641418922580,0.64708774,43775.0,43763.0,0.84274383]
[1641418922781,0.0172002,43775.0,43763.0,0.84274383]
[1641418922981,0.0172002,43775.0,43764.0,0.369576]
[1641418923232,0.0172002,43775.0,43764.0,0.469576]
[1641418923233,0.016,43775.0,43764.0,0.469576]
[1641418923433,0.023,43775.0,43764.0,0.469576]
[1641418923636,0.007,43775.0,43764.0,0.469576]
[1641418923834,0.007,43775.0,43765.0,1.2922274]
[1641418924031,0.007,43775.0,43773.0,0.63523705]
[1641418924232,0.007,43775.0,43774.0,0.369489]
[1641418924633,0.44393981,43782.0,43774.0,0.369489]
[1641418924834,0.44393981,43782.0,43774.0,0.00121673]
[1641418925235,0.66037295,43782.0,43774.0,0.00121673]
[1641418925432,0.26626476,43780.0,43774.0,0.00321673]
[1641418925835,0.57995956,43779.0,43774.0,0.00321673]
[1641418926034,0.0012851,43778.0,43774.0,0.00321673]
[1641418926636,0.57794042,43776.0,43774.0,0.00321673]
[1641418926840,1.1895,43775.0,43774.0,0.00321673]
[1641418927079,1.1895,43775.0,43774.0,0.00121673]
[1641418927480,1.3905,43775.0,43757.0,0.114268]
[1641418927679,0.35344345,43760.0,43749.0,0.11]
[1641418927878,0.35344345,43760.0,43750.0,0.3695]
[1641418927879,0.58974261,43760.0,43750.0,0.3695]
[1641418928079,0.35472644,43760.0,43749.0,0.11]
[1641418928479,0.40903239,43756.0,43749.0,0.11]
[1641418928884,0.40903239,43756.0,43751.0,1.29256635]
[1641418929078,0.40903239,43756.0,43752.0,0.3695]
[1641418929480,0.00123141,43753.0,43751.0,0.004]
[1641418929681,0.41903239,43756.0,43751.0,0.004]
[1641418929682,2.28320793,43752.0,43751.0,0.004]
[1641418929880,2.28320793,43752.0,43749.0,0.11]
[1641418929881,2.65270793,43752.0,43749.0,0.11]
[1641418930080,0.3695,43750.0,43736.0,0.00011]
[1641418930280,0.58078887,43741.0,43736.0,0.00011]
[1641418930478,0.43317616,43738.0,43736.0,0.00011]
[1641418930726,1.01000359,43738.0,43736.0,0.00011]
[1641418931130,0.80267616,43738.0,43736.0,0.00011]
[1641418931533,0.80967616,43738.0,43736.0,0.00011]
[1641418931930,0.3765,43738.0,43736.0,0.00011]
[1641418932231,0.005,43738.0,43736.0,0.00011]
[1641418932428,0.005,43738.0,43737.0,0.36961]
[1641418932629,2.24,43752.0,43737.0,0.36961]
[1641418932630,2.24,43752.0,43740.0,0.057161]
[1641418932828,0.00126949,43748.0,43737.0,0.00011]
[1641418933030,0.00126949,43748.0,43744.0,0.54533749]
[1641418933031,0.41906985,43748.0,43744.0,0.54533749]
[1641418933529,0.01926949,43748.0,43744.0,0.54533749]
[1641418933729,0.01926949,43748.0,43745.0,0.3695]
[1641418933929,0.01926949,43748.0,43745.0,0.36922007]
[1641418934579,0.00126949,43748.0,43745.0,0.36922007]
[1641418934778,0.00126949,43748.0,43744.0,0.54533749]
[1641418935379,0.00826949,43748.0,43744.0,0.54533749]
[1641418936379,0.0012715,43748.0,43744.0,0.54533749]
[1641418936582,0.0012715,43748.0,43737.0,0.00136896]
[1641418936785,0.0012633,43742.0,43737.0,0.00136896]
[1641418937484,0.6325238,43740.0,43737.0,0.00136896]
[1641418937683,1.02518975,43739.0,43737.0,0.00136896]
[1641418937883,1.42,43737.0,43734.0,2.896e-05]
[1641418938080,1.88843121,43735.0,43734.0,2.896e-05]
[1641418938327,1.189567,43734.0,43727.0,0.00544]
[1641418938526,0.0012959,43732.0,43727.0,0.00544]
[1641418938727,0.90486204,43730.0,43727.0,0.00544]
[1641418938924,0.61442904,43730.0,43727.0,0.00544]
[1641418939125,0.369567,43729.0,43727.0,0.00132]
[1641418939327,0.25186204,43730.0,43727.0,0.00132]
[1641418939525,0.007,43730.0,43727.0,0.00132]
[1641418940126,0.007,43730.0,43729.0,0.60907364]
[1641418940327,0.39,43736.0,43729.0,0.60907364]
[1641418940528,0.00120149,43739.0,43729.0,0.60907364]
[1641418940529,0.0001,43730.0,43729.0,0.60907364]
[1641418940726,0.19062511,43739.0,43730.0,0.073968]
[1641418940928,0.0001,43740.0,43729.0,1.03577334]
[1641418941136,0.0001,43740.0,43733.0,0.26292465]
[1641418941526,0.20660711,43740.0,43729.0,1.04377334]
[1641418941726,0.0012278,43736.0,43729.0,0.61707364]
[1641418942277,0.47388574,43737.0,43729.0,0.61707364]
[1641418942478,0.057189,43734.0,43729.0,0.008]
[1641418942678,0.057189,43734.0,43728.0,0.30046644]
[1641418943480,0.54335834,43730.0,43727.0,0.00132]
[1641418943682,0.426765,43729.0,43727.0,0.00132]
[1641418943880,0.421765,43729.0,43727.0,0.00132]
[1641418944485,0.00127211,43730.0,43727.0,0.00132]
[1641418944682,0.31435437,43737.0,43728.0,0.369609]
[1641418944683,0.042,43737.0,43728.0,0.369609]
[1641418944882,0.04321519,43737.0,43729.0,0.27146229]
[1641418945083,0.057186,43736.0,43729.0,0.27146229]
[1641418945283,0.057186,43736.0,43729.0,0.82084298]
[1641418945484,0.057186,43736.0,43729.0,1.24742036]
[1641418947330,0.061186,43736.0,43730.0,0.369609]
[1641418947531,0.061186,43736.0,43729.0,1.24742036]
[1641418947532,0.004,43736.0,43729.0,1.24742036]
[1641418947838,0.004,43736.0,43730.0,0.369609]
[1641418948033,0.004,43736.0,43731.0,0.24382183]
[1641418948231,0.004,43736.0,43735.0,2.49159546]
[1641418948434,0.004,43736.0,43735.0,2.86115946]
[1641418948834,0.0001,43740.0,43735.0,3.38239252]
[1641418949034,0.0001,43740.0,43739.0,2.318888]
[1641418949482,0.0001,43740.0,43739.0,2.93088979]
[1641418949873,0.0001,43740.0,43739.0,3.2543286]
[1641418950276,0.0001,43740.0,43739.0,3.3114896]
[1641418950679,0.057161,43756.0,43747.0,0.27823656]
[1641418951276,0.107161,43756.0,43747.0,0.27823656]
[1641418951477,0.143161,43756.0,43747.0,0.28223656]
[1641418951676,0.143161,43756.0,43751.0,0.43481086]
[1641418951976,0.143161,43756.0,43752.0,0.48713741]
[1641418952781,0.107161,43756.0,43752.0,0.48713741]
[1641418953233,0.171582,43760.0,43753.0,0.69948681]
[1641418953234,0.0001,43760.0,43753.0,0.69948681]
[1641418953432,0.0001,43760.0,43753.0,0.74948681]
[1641418953433,0.036,43756.0,43753.0,0.74948681]
[1641418953629,0.036,43756.0,43755.0,0.00123569]
[1641418953935,0.036,43756.0,43755.0,1.2158694]
[1641418954732,0.0001,43760.0,43755.0,1.2158694]
[1641418954930,0.0001,43760.0,43755.0,0.97701469]
[1641418955528,0.0001,43760.0,43758.0,0.33334029]
[1641418955732,0.0001,43760.0,43759.0,1.079556]
[1641418956131,0.0001,43760.0,43759.0,1.589556]
[1641418956532,0.0001,43760.0,43759.0,2.21074564]
[1641418957184,0.0001,43760.0,43759.0,1.70074564]
[1641418957388,0.0061,43760.0,43759.0,1.70674564]
[1641418957588,0.0061,43760.0,43759.0,0.375556]
[1641418957987,0.0061,43760.0,43759.0,0.006]
[1641418958186,1.4761,43760.0,43759.0,0.006]
[1641418958387,1.94694837,43760.0,43759.0,0.0001]
[1641418958585,0.89991988,43760.0,43759.0,0.0001]
[1641418958785,1.33741744,43760.0,43753.0,0.01352951]
[1641418958985,0.30731021,43757.0,43753.0,0.01352951]
[1641418959185,0.369609,43756.0,43753.0,0.01352951]
[1641418959386,0.30731021,43757.0,43753.0,0.01752951]
[1641418959686,0.369609,43756.0,43753.0,0.01752951]
[1641418960188,0.97380844,43760.0,43753.0,0.004]
[1641418960587,0.53056689,43760.0,43752.0,0.019577]
[1641418960830,0.52456689,43760.0,43752.0,0.019577]
[1641418961032,0.52334676,43760.0,43752.0,0.019577]
[1641418961432,0.52934676,43760.0,43752.0,0.30531182]
[1641418961630,0.52934676,43760.0,43752.0,0.032577]
[1641418961931,0.0061,43760.0,43753.0,0.78933656]
[1641418962130,0.0061,43760.0,43754.0,0.369609]
[1641418962330,0.0061,43760.0,43754.0,0.426753]
[1641418962534,0.0061,43760.0,43754.0,0.42796418]
[1641418962730,0.0001,43760.0,43754.0,0.37082018]
[1641418962932,0.0001,43760.0,43754.0,0.369609]
[1641418963132,0.0001,43760.0,43752.0,0.019577]
[1641418963431,0.0001,43760.0,43754.0,0.006]
[1641418963432,0.0041,43760.0,43754.0,0.006]
[1641418963632,0.369609,43759.0,43754.0,0.006]
[1641418963838,0.00123074,43755.0,43754.0,0.0001]
[1641418964035,0.00123074,43755.0,43735.0,0.00984749]
[1641418964036,0.00127577,43750.0,43735.0,0.00984749]
[1641418964233,0.369609,43749.0,43735.0,0.00984749]
[1641418964484,0.00123343,43744.0,43735.0,0.00984749]
[1641418964875,0.34085601,43742.0,43735.0,0.00984749]
[1641418965078,0.34085601,43742.0,43737.0,0.51027106]
[1641418965474,0.34485601,43742.0,43735.0,0.00984749]
[1641418966078,0.004,43742.0,43735.0,0.00984749]
[1641418966279,0.004,43742.0,43734.0,0.27964465]
[1641418966280,0.004,43742.0,43739.0,0.2]
[1641418966479,0.004,43742.0,43740.0,0.369609]
[1641418966681,0.00122332,43752.0,43740.0,0.369609]
[1641418966880,0.00122332,43752.0,43738.0,0.32315041]
[1641418967079,0.00122332,43752.0,43740.0,0.057162]
[1641418967280,0.00122332,43752.0,43738.0,0.32315041]
[1641418967281,0.00122332,43752.0,43751.0,0.65556214]
[1641418967479,2.13383232,43752.0,43751.0,0.65556214]
[1641418968226,2.13383232,43752.0,43741.0,0.32123721]
[1641418968527,1.76422332,43752.0,43741.0,0.32123721]
[1641418968727,1.81838832,43752.0,43741.0,0.32123721]
[1641418969126,1.81838832,43752.0,43741.0,0.37840221]
[1641418969327,1.81838832,43752.0,43745.0,0.5276684]